Workbook

Sheet Data (hidden)
A1: EXCHANGE%3DNSE
A2: MARKET_OPEN_MINUTE=555
A3: MARKET_CLOSE_MINUTE=930
A4: INTERVAL=60
A5: COLUMNS=DATE | B5: CLOSE | C5: HIGH | D5: LOW | E5: OPEN | F5: VOLUME
A6: DATA=
A7: TIMEZONE_OFFSET=330
A8: a1504064700 | B8: 2481 | C8: 2481 | D8: 2481 | E8: 2481 | F8: 515 | G8: 2017-08-30T09:15:00
A9: 1 | B9: 2463.95 | C9: 2484.25 | D9: 2463 | E9: 2476.1 | F9: 10151 | G9: =(A9*60+1504084500)/86400+25569 -> 2017-08-30T09:16:00
A10: 2 | B10: 2464.95 | C10: 2465 | D10: 2462.85 | E10: 2463 | F10: 6152 | G10: =(A10*60+1504084500)/86400+25569 -> 2017-08-30T09:17:00
A11: 3 | B11: 2463 | C11: 2466.85 | D11: 2462.3 | E11: 2465.2 | F11: 2414 | G11: =(A11*60+1504084500)/86400+25569 -> 2017-08-30T09:18:00
A12: 4 | B12: 2466 | C12: 2468.75 | D12: 2463.4 | E12: 2463.4 | F12: 6010 | G12: =(A12*60+1504084500)/86400+25569 -> 2017-08-30T09:19:00
A13: 5 | B13: 2465.5 | C13: 2468.1 | D13: 2465 | E13: 2465 | F13: 2728 | G13: =(A13*60+1504084500)/86400+25569 -> 2017-08-30T09:20:00
A14: 6 | B14: 2467.3 | C14: 2469.45 | D14: 2465 | E14: 2465 | F14: 1081 | G14: =(A14*60+1504084500)/86400+25569 -> 2017-08-30T09:21:00
A15: 7 | B15: 2469 | C15: 2470.45 | D15: 2467.5 | E15: 2468.4 | F15: 2175 | G15: =(A15*60+1504084500)/86400+25569 -> 2017-08-30T09:22:00
A16: 8 | B16: 2468.1 | C16: 2470.4 | D16: 2467.1 | E16: 2469 | F16: 1584 | G16: =(A16*60+1504084500)/86400+25569 -> 2017-08-30T09:23:00
A17: 9 | B17: 2469.1 | C17: 2469.1 | D17: 2467.9 | E17: 2468.05 | F17: 980 | G17: =(A17*60+1504084500)/86400+25569 -> 2017-08-30T09:24:00
A18: 10 | B18: 2470.1 | C18: 2470.4 | D18: 2467.9 | E18: 2470 | F18: 2560 | G18: =(A18*60+1504084500)/86400+25569 -> 2017-08-30T09:25:00
A19: 11 | B19: 2468.05 | C19: 2472.4 | D19: 2468.05 | E19: 2470 | F19: 4636 | G19: =(A19*60+1504084500)/86400+25569 -> 2017-08-30T09:26:00
A20: 12 | B20: 2468.5 | C20: 2470 | D20: 2467 | E20: 2468 | F20: 1027 | G20: =(A20*60+1504084500)/86400+25569 -> 2017-08-30T09:27:00
A21: 13 | B21: 2468.15 | C21: 2469.45 | D21: 2467 | E21: 2468.5 | F21: 1692 | G21: =(A21*60+1504084500)/86400+25569 -> 2017-08-30T09:28:00
A22: 14 | B22: 2468.6 | C22: 2469.4 | D22: 2468.15 | E22: 2468.15 | F22: 838 | G22: =(A22*60+1504084500)/86400+25569 -> 2017-08-30T09:29:00
A23: 15 | B23: 2469.2 | C23: 2469.3 | D23: 2468.6 | E23: 2469.15 | F23: 455 | G23: =(A23*60+1504084500)/86400+25569 -> 2017-08-30T09:30:00
A24: 1.624682469e+20 | G24: =(A24*60+1504084500)/86400+25569 -> 1.128251715e+17
A25: 17 | B25: 2468 | C25: 2469.75 | D25: 2466.9 | E25: 2468 | F25: 1541 | G25: =(A25*60+1504084500)/86400+25569 -> 2017-08-30T09:32:00
A26: 18 | B26: 2470.95 | C26: 2471 | D26: 2467.05 | E26: 2468 | F26: 6939 | G26: =(A26*60+1504084500)/86400+25569 -> 2017-08-30T09:33:00
A27: 19 | B27: 2470.5 | C27: 2471 | D27: 2469.7 | E27: 2470.1 | F27: 1174 | G27: =(A27*60+1504084500)/86400+25569 -> 2017-08-30T09:34:00
A28: 20 | B28: 2473.95 | C28: 2474 | D28: 2469.7 | E28: 2470.35 | F28: 1021 | G28: =(A28*60+1504084500)/86400+25569 -> 2017-08-30T09:35:00
A29: 21 | B29: 2476.9 | C29: 2476.95 | D29: 2472.4 | E29: 2473.7 | F29: 3051 | G29: =(A29*60+1504084500)/86400+25569 -> 2017-08-30T09:36:00
A30: 22 | B30: 2471.15 | C30: 2476.9 | D30: 2471 | E30: 2476.9 | F30: 2307 | G30: =(A30*60+1504084500)/86400+25569 -> 2017-08-30T09:37:00
A31: 23 | B31: 2470.05 | C31: 2471.95 | D31: 2469.7 | E31: 2471.3 | F31: 1340 | G31: =(A31*60+1504084500)/86400+25569 -> 2017-08-30T09:38:00
A32: 24 | B32: 2469.95 | C32: 2470.2 | D32: 2467.4 | E32: 2470 | F32: 1925 | G32: =(A32*60+1504084500)/86400+25569 -> 2017-08-30T09:39:00
A33: 25 | B33: 2467.1 | C33: 2469.4 | D33: 2467 | E33: 2468 | F33: 1260 | G33: =(A33*60+1504084500)/86400+25569 -> 2017-08-30T09:40:00
A34: 26 | B34: 2468.05 | C34: 2468.8 | D34: 2467.1 | E34: 2467.1 | F34: 834 | G34: =(A34*60+1504084500)/86400+25569 -> 2017-08-30T09:41:00
A35: 27 | B35: 2468.3 | C35: 2470.8 | D35: 2468.05 | E35: 2468.4 | F35: 535 | G35: =(A35*60+1504084500)/86400+25569 -> 2017-08-30T09:42:00
A36: 28 | B36: 2468.75 | C36: 2470.25 | D36: 2468.15 | E36: 2470.25 | F36: 169 | G36: =(A36*60+1504084500)/86400+25569 -> 2017-08-30T09:43:00
A37: 29 | B37: 2468.25 | C37: 2468.8 | D37: 2468.15 | E37: 2468.8 | F37: 330 | G37: =(A37*60+1504084500)/86400+25569 -> 2017-08-30T09:44:00
A38: 30 | B38: 2468.6 | C38: 2468.75 | D38: 2468.5 | E38: 2468.65 | F38: 296 | G38: =(A38*60+1504084500)/86400+25569 -> 2017-08-30T09:45:00
A39: 31 | B39: 2466.5 | C39: 2468.5 | D39: 2465.65 | E39: 2468.5 | F39: 1858 | G39: =(A39*60+1504084500)/86400+25569 -> 2017-08-30T09:46:00
A40: 32 | B40: 2466.7 | C40: 2466.85 | D40: 2465.2 | E40: 2465.65 | F40: 920 | G40: =(A40*60+1504084500)/86400+25569 -> 2017-08-30T09:47:00
A41: 33 | B41: 2466.45 | C41: 2469.2 | D41: 2465.2 | E41: 2466.65 | F41: 2123 | G41: =(A41*60+1504084500)/86400+25569 -> 2017-08-30T09:48:00
A42: 34 | B42: 2467 | C42: 2467.95 | D42: 2466.4 | E42: 2467.4 | F42: 450 | G42: =(A42*60+1504084500)/86400+25569 -> 2017-08-30T09:49:00
A43: 35 | B43: 2466 | C43: 2467.75 | D43: 2466 | E43: 2467.75 | F43: 451 | G43: =(A43*60+1504084500)/86400+25569 -> 2017-08-30T09:50:00
A44: 36 | B44: 2466 | C44: 2467.6 | D44: 2466 | E44: 2467 | F44: 569 | G44: =(A44*60+1504084500)/86400+25569 -> 2017-08-30T09:51:00
A45: 37 | B45: 2466.4 | C45: 2466.4 | D45: 2465.8 | E45: 2466 | F45: 494 | G45: =(A45*60+1504084500)/86400+25569 -> 2017-08-30T09:52:00
A46: 38 | B46: 2468.2 | C46: 2468.2 | D46: 2466 | E46: 2466.5 | F46: 1887 | G46: =(A46*60+1504084500)/86400+25569 -> 2017-08-30T09:53:00
A47: 39 | B47: 2465.55 | C47: 2468.1 | D47: 2465.55 | E47: 2467.85 | F47: 167 | G47: =(A47*60+1504084500)/86400+25569 -> 2017-08-30T09:54:00
A48: 40 | B48: 2464.15 | C48: 2466.95 | D48: 2464.15 | E48: 2466.85 | F48: 429 | G48: =(A48*60+1504084500)/86400+25569 -> 2017-08-30T09:55:00
A49: 41 | B49: 2467.7 | C49: 2467.85 | D49: 2465 | E49: 2465.9 | F49: 637 | G49: =(A49*60+1504084500)/86400+25569 -> 2017-08-30T09:56:00
A50: 42 | B50: 2467.55 | C50: 2467.7 | D50: 2466.25 | E50: 2467.7 | F50: 419 | G50: =(A50*60+1504084500)/86400+25569 -> 2017-08-30T09:57:00
A51: 43 | B51: 2466.1 | C51: 2467.5 | D51: 2466.05 | E51: 2466.2 | F51: 319 | G51: =(A51*60+1504084500)/86400+25569 -> 2017-08-30T09:58:00
A52: 44 | B52: 2465.95 | C52: 2467.4 | D52: 2465.95 | E52: 2467.4 | F52: 499 | G52: =(A52*60+1504084500)/86400+25569 -> 2017-08-30T09:59:00
A53: 45 | B53: 2466.15 | C53: 2466.3 | D53: 2465.95 | E53: 2466.15 | F53: 1258 | G53: =(A53*60+1504084500)/86400+25569 -> 2017-08-30T10:00:00
A54: 46 | B54: 2468.9 | C54: 2473.55 | D54: 2466.15 | E54: 2466.15 | F54: 3055 | G54: =(A54*60+1504084500)/86400+25569 -> 2017-08-30T10:01:00
A55: 47 | B55: 2468 | C55: 2468.9 | D55: 2467.95 | E55: 2468.5 | F55: 969 | G55: =(A55*60+1504084500)/86400+25569 -> 2017-08-30T10:02:00
A56: 48 | B56: 2468.7 | C56: 2468.85 | D56: 2468 | E56: 2468.85 | F56: 186 | G56: =(A56*60+1504084500)/86400+25569 -> 2017-08-30T10:03:00
A57: 49 | B57: 2467.7 | C57: 2468.85 | D57: 2467.7 | E57: 2468.85 | F57: 98 | G57: =(A57*60+1504084500)/86400+25569 -> 2017-08-30T10:04:00
A58: 50 | B58: 2468 | C58: 2468.8 | D58: 2467.8 | E58: 2468.8 | F58: 357 | G58: =(A58*60+1504084500)/86400+25569 -> 2017-08-30T10:05:00
A59: 51 | B59: 2468 | C59: 2468 | D59: 2467.2 | E59: 2468 | F59: 169 | G59: =(A59*60+1504084500)/86400+25569 -> 2017-08-30T10:06:00
A60: 52 | B60: 2466.7 | C60: 2467.95 | D60: 2466 | E60: 2467.4 | F60: 887 | G60: =(A60*60+1504084500)/86400+25569 -> 2017-08-30T10:07:00
A61: 53 | B61: 2466.8 | C61: 2466.8 | D61: 2466 | E61: 2466.7 | F61: 331 | G61: =(A61*60+1504084500)/86400+25569 -> 2017-08-30T10:08:00
A62: 54 | B62: 2467.2 | C62: 2467.2 | D62: 2466.8 | E62: 2466.95 | F62: 347 | G62: =(A62*60+1504084500)/86400+25569 -> 2017-08-30T10:09:00
A63: 55 | B63: 2467.2 | C63: 2467.65 | D63: 2466.75 | E63: 2467.2 | F63: 521 | G63: =(A63*60+1504084500)/86400+25569 -> 2017-08-30T10:10:00
A64: 56 | B64: 2467.25 | C64: 2467.3 | D64: 2465.55 | E64: 2466.1 | F64: 480 | G64: =(A64*60+1504084500)/86400+25569 -> 2017-08-30T10:11:00
A65: 57 | B65: 2467.3 | C65: 2467.45 | D65: 2465.8 | E65: 2467.25 | F65: 133 | G65: =(A65*60+1504084500)/86400+25569 -> 2017-08-30T10:12:00
A66: 58 | B66: 2467.95 | C66: 2468 | D66: 2466.05 | E66: 2467.65 | F66: 380 | G66: =(A66*60+1504084500)/86400+25569 -> 2017-08-30T10:13:00
A67: 59 | B67: 2467.55 | C67: 2467.95 | D67: 2466.05 | E67: 2467.95 | F67: 136 | G67: =(A67*60+1504084500)/86400+25569 -> 2017-08-30T10:14:00
A68: 60 | B68: 2467.8 | C68: 2467.8 | D68: 2467.65 | E68: 2467.65 | F68: 152 | G68: =(A68*60+1504084500)/86400+25569 -> 2017-08-30T10:15:00
A69: 61 | B69: 2467.55 | C69: 2467.8 | D69: 2466.1 | E69: 2467.6 | F69: 246 | G69: =(A69*60+1504084500)/86400+25569 -> 2017-08-30T10:16:00
A70: 62 | B70: 2466.35 | C70: 2467.45 | D70: 2465.2 | E70: 2467.45 | F70: 550 | G70: =(A70*60+1504084500)/86400+25569 -> 2017-08-30T10:17:00
A71: 63 | B71: 2466.4 | C71: 2466.4 | D71: 2465.5 | E71: 2466.35 | F71: 127 | G71: =(A71*60+1504084500)/86400+25569 -> 2017-08-30T10:18:00
A72: 64 | B72: 2465.55 | C72: 2466.35 | D72: 2465.45 | E72: 2466.35 | F72: 104 | G72: =(A72*60+1504084500)/86400+25569 -> 2017-08-30T10:19:00
A73: 65 | B73: 2465 | C73: 2466.2 | D73: 2465 | E73: 2466.15 | F73: 385 | G73: =(A73*60+1504084500)/86400+25569 -> 2017-08-30T10:20:00
A74: 66 | B74: 2466.3 | C74: 2466.3 | D74: 2465 | E74: 2465 | F74: 666 | G74: =(A74*60+1504084500)/86400+25569 -> 2017-08-30T10:21:00
A75: 67 | B75: 2465.1 | C75: 2466.3 | D75: 2465.1 | E75: 2466.3 | F75: 99 | G75: =(A75*60+1504084500)/86400+25569 -> 2017-08-30T10:22:00
A76: 68 | B76: 2464.4 | C76: 2466 | D76: 2464 | E76: 2466 | F76: 1257 | G76: =(A76*60+1504084500)/86400+25569 -> 2017-08-30T10:23:00
A77: 69 | B77: 2464.1 | C77: 2465.9 | D77: 2464 | E77: 2465.9 | F77: 445 | G77: =(A77*60+1504084500)/86400+25569 -> 2017-08-30T10:24:00
A78: 70 | B78: 2462.25 | C78: 2465.45 | D78: 2462.25 | E78: 2464.55 | F78: 977 | G78: =(A78*60+1504084500)/86400+25569 -> 2017-08-30T10:25:00
A79: 71 | B79: 2461.55 | C79: 2463 | D79: 2461 | E79: 2461.85 | F79: 2914 | G79: =(A79*60+1504084500)/86400+25569 -> 2017-08-30T10:26:00
A80: 72 | B80: 2462.6 | C80: 2462.6 | D80: 2461.05 | E80: 2462.35 | F80: 725 | G80: =(A80*60+1504084500)/86400+25569 -> 2017-08-30T10:27:00
A81: 73 | B81: 2462 | C81: 2462.8 | D81: 2461.05 | E81: 2462.55 | F81: 1658 | G81: =(A81*60+1504084500)/86400+25569 -> 2017-08-30T10:28:00
A82: 74 | B82: 2463.25 | C82: 2463.3 | D82: 2462.5 | E82: 2463.1 | F82: 319 | G82: =(A82*60+1504084500)/86400+25569 -> 2017-08-30T10:29:00
A83: 75 | B83: 2466.4 | C83: 2466.95 | D83: 2463.3 | E83: 2463.5 | F83: 2716 | G83: =(A83*60+1504084500)/86400+25569 -> 2017-08-30T10:30:00
A84: 76 | B84: 2466.5 | C84: 2466.5 | D84: 2465 | E84: 2465.5 | F84: 278 | G84: =(A84*60+1504084500)/86400+25569 -> 2017-08-30T10:31:00
A85: 77 | B85: 2466 | C85: 2466.5 | D85: 2465.6 | E85: 2466.4 | F85: 645 | G85: =(A85*60+1504084500)/86400+25569 -> 2017-08-30T10:32:00
A86: 78 | B86: 2466 | C86: 2466.75 | D86: 2465.2 | E86: 2466.5 | F86: 773 | G86: =(A86*60+1504084500)/86400+25569 -> 2017-08-30T10:33:00
A87: 79 | B87: 2465.45 | C87: 2466.85 | D87: 2465 | E87: 2466.85 | F87: 246 | G87: =(A87*60+1504084500)/86400+25569 -> 2017-08-30T10:34:00
A88: 80 | B88: 2464.15 | C88: 2465.9 | D88: 2464.15 | E88: 2465.9 | F88: 75 | G88: =(A88*60+1504084500)/86400+25569 -> 2017-08-30T10:35:00
A89: 81 | B89: 2464.2 | C89: 2465.35 | D89: 2464.15 | E89: 2465.3 | F89: 203 | G89: =(A89*60+1504084500)/86400+25569 -> 2017-08-30T10:36:00
A90: 82 | B90: 2465.05 | C90: 2465.05 | D90: 2464.15 | E90: 2465.05 | F90: 55 | G90: =(A90*60+1504084500)/86400+25569 -> 2017-08-30T10:37:00
A91: 83 | B91: 2464 | C91: 2465.35 | D91: 2464 | E91: 2465.25 | F91: 277 | G91: =(A91*60+1504084500)/86400+25569 -> 2017-08-30T10:38:00
A92: 84 | B92: 2464 | C92: 2464.95 | D92: 2463.1 | E92: 2464.95 | F92: 376 | G92: =(A92*60+1504084500)/86400+25569 -> 2017-08-30T10:39:00
A93: 85 | B93: 2463.1 | C93: 2464.7 | D93: 2463.1 | E93: 2464.7 | F93: 122 | G93: =(A93*60+1504084500)/86400+25569 -> 2017-08-30T10:40:00
A94: 86 | B94: 2462.6 | C94: 2463.3 | D94: 2462 | E94: 2463.1 | F94: 761 | G94: =(A94*60+1504084500)/86400+25569 -> 2017-08-30T10:41:00
A95: 87 | B95: 2462.1 | C95: 2463.2 | D95: 2462.05 | E95: 2462.55 | F95: 423 | G95: =(A95*60+1504084500)/86400+25569 -> 2017-08-30T10:42:00
A96: 88 | B96: 2463 | C96: 2463.55 | D96: 2462.3 | E96: 2463.3 | F96: 183 | G96: =(A96*60+1504084500)/86400+25569 -> 2017-08-30T10:43:00
A97: 89 | B97: 2462.6 | C97: 2463.4 | D97: 2462.25 | E97: 2462.3 | F97: 537 | G97: =(A97*60+1504084500)/86400+25569 -> 2017-08-30T10:44:00
A98: 90 | B98: 2463 | C98: 2463.45 | D98: 2462.55 | E98: 2462.55 | F98: 252 | G98: =(A98*60+1504084500)/86400+25569 -> 2017-08-30T10:45:00
A99: 91 | B99: 2462.55 | C99: 2463.35 | D99: 2462.55 | E99: 2462.6 | F99: 26 | G99: =(A99*60+1504084500)/86400+25569 -> 2017-08-30T10:46:00
A100: 92 | B100: 2462.65 | C100: 2463.75 | D100: 2462.35 | E100: 2463.75 | F100: 120 | G100: =(A100*60+1504084500)/86400+25569 -> 2017-08-30T10:47:00
A101: 93 | B101: 2462.6 | C101: 2463 | D101: 2462.6 | E101: 2462.65 | F101: 16 | G101: =(A101*60+1504084500)/86400+25569 -> 2017-08-30T10:48:00
A102: 94 | B102: 2462.75 | C102: 2463.15 | D102: 2462.6 | E102: 2463 | F102: 226 | G102: =(A102*60+1504084500)/86400+25569 -> 2017-08-30T10:49:00
A103: 95 | B103: 2462.95 | C103: 2462.95 | D103: 2462.65 | E103: 2462.75 | F103: 271 | G103: =(A103*60+1504084500)/86400+25569 -> 2017-08-30T10:50:00
A104: 96 | B104: 2463.5 | C104: 2463.5 | D104: 2462.75 | E104: 2462.75 | F104: 76 | G104: =(A104*60+1504084500)/86400+25569 -> 2017-08-30T10:51:00
A105: 97 | B105: 2463.5 | C105: 2463.85 | D105: 2463.5 | E105: 2463.75 | F105: 37 | G105: =(A105*60+1504084500)/86400+25569 -> 2017-08-30T10:52:00
A106: 98 | B106: 2463.85 | C106: 2464.1 | D106: 2463.5 | E106: 2463.85 | F106: 453 | G106: =(A106*60+1504084500)/86400+25569 -> 2017-08-30T10:53:00
A107: 99 | B107: 2463.5 | C107: 2464.2 | D107: 2463.5 | E107: 2464.15 | F107: 75 | G107: =(A107*60+1504084500)/86400+25569 -> 2017-08-30T10:54:00
A108: 100 | B108: 2464 | C108: 2464.2 | D108: 2464 | E108: 2464.05 | F108: 142 | G108: =(A108*60+1504084500)/86400+25569 -> 2017-08-30T10:55:00
A109: 101 | B109: 2463.2 | C109: 2464.2 | D109: 2463 | E109: 2464.2 | F109: 241 | G109: =(A109*60+1504084500)/86400+25569 -> 2017-08-30T10:56:00
A110: 102 | B110: 2463.1 | C110: 2463.3 | D110: 2463.05 | E110: 2463.05 | F110: 68 | G110: =(A110*60+1504084500)/86400+25569 -> 2017-08-30T10:57:00
A111: 103 | B111: 2463.15 | C111: 2463.15 | D111: 2463.05 | E111: 2463.05 | F111: 273 | G111: =(A111*60+1504084500)/86400+25569 -> 2017-08-30T10:58:00
A112: 104 | B112: 2464 | C112: 2464 | D112: 2463.3 | E112: 2463.3 | F112: 399 | G112: =(A112*60+1504084500)/86400+25569 -> 2017-08-30T10:59:00
A113: 105 | B113: 2463.45 | C113: 2464.8 | D113: 2463.35 | E113: 2463.55 | F113: 340 | G113: =(A113*60+1504084500)/86400+25569 -> 2017-08-30T11:00:00
A114: 106 | B114: 2463.4 | C114: 2464.75 | D114: 2463.4 | E114: 2464.75 | F114: 493 | G114: =(A114*60+1504084500)/86400+25569 -> 2017-08-30T11:01:00
A115: 107 | B115: 2463.45 | C115: 2464.3 | D115: 2463.05 | E115: 2463.4 | F115: 135 | G115: =(A115*60+1504084500)/86400+25569 -> 2017-08-30T11:02:00
A116: 108 | B116: 2463.8 | C116: 2464.05 | D116: 2463.8 | E116: 2463.8 | F116: 308 | G116: =(A116*60+1504084500)/86400+25569 -> 2017-08-30T11:03:00
A117: 109 | B117: 2464.2 | C117: 2464.2 | D117: 2463.05 | E117: 2463.8 | F117: 161 | G117: =(A117*60+1504084500)/86400+25569 -> 2017-08-30T11:04:00
A118: 110 | B118: 2464.2 | C118: 2464.2 | D118: 2464.2 | E118: 2464.2 | F118: 34 | G118: =(A118*60+1504084500)/86400+25569 -> 2017-08-30T11:05:00
A119: 111 | B119: 2464.2 | C119: 2464.2 | D119: 2463.75 | E119: 2464.2 | F119: 89 | G119: =(A119*60+1504084500)/86400+25569 -> 2017-08-30T11:06:00
A120: 112 | B120: 2463.2 | C120: 2463.95 | D120: 2463.2 | E120: 2463.95 | F120: 111 | G120: =(A120*60+1504084500)/86400+25569 -> 2017-08-30T11:07:00
A121: 113 | B121: 2464.2 | C121: 2464.2 | D121: 2463.2 | E121: 2463.2 | F121: 258 | G121: =(A121*60+1504084500)/86400+25569 -> 2017-08-30T11:08:00
A122: 114 | B122: 2464.85 | C122: 2464.85 | D122: 2464.2 | E122: 2464.2 | F122: 218 | G122: =(A122*60+1504084500)/86400+25569 -> 2017-08-30T11:09:00
A123: 115 | B123: 2464.9 | C123: 2465.45 | D123: 2463.85 | E123: 2465 | F123: 439 | G123: =(A123*60+1504084500)/86400+25569 -> 2017-08-30T11:10:00
A124: 116 | B124: 2464 | C124: 2465.25 | D124: 2464 | E124: 2464.9 | F124: 400 | G124: =(A124*60+1504084500)/86400+25569 -> 2017-08-30T11:11:00
A125: 117 | B125: 2463.7 | C125: 2465.4 | D125: 2463.2 | E125: 2465.35 | F125: 1031 | G125: =(A125*60+1504084500)/86400+25569 -> 2017-08-30T11:12:00
A126: 118 | B126: 2464.7 | C126: 2464.75 | D126: 2463.25 | E126: 2464.7 | F126: 78 | G126: =(A126*60+1504084500)/86400+25569 -> 2017-08-30T11:13:00
A127: 119 | B127: 2465 | C127: 2465.1 | D127: 2464.75 | E127: 2464.9 | F127: 458 | G127: =(A127*60+1504084500)/86400+25569 -> 2017-08-30T11:14:00
A128: 120 | B128: 2465.05 | C128: 2465.8 | D128: 2465 | E128: 2465 | F128: 396 | G128: =(A128*60+1504084500)/86400+25569 -> 2017-08-30T11:15:00
A129: 121 | B129: 2463.35 | C129: 2465.5 | D129: 2463.35 | E129: 2465.5 | F129: 275 | G129: =(A129*60+1504084500)/86400+25569 -> 2017-08-30T11:16:00
A130: 122 | B130: 2463.5 | C130: 2464.45 | D130: 2463.5 | E130: 2464.05 | F130: 70 | G130: =(A130*60+1504084500)/86400+25569 -> 2017-08-30T11:17:00
A131: 123 | B131: 2464 | C131: 2464.3 | D131: 2463.5 | E131: 2464.3 | F131: 68 | G131: =(A131*60+1504084500)/86400+25569 -> 2017-08-30T11:18:00
A132: 124 | B132: 2463.85 | C132: 2464 | D132: 2463.2 | E132: 2464 | F132: 298 | G132: =(A132*60+1504084500)/86400+25569 -> 2017-08-30T11:19:00
A133: 125 | B133: 2464.75 | C133: 2464.75 | D133: 2463.75 | E133: 2463.85 | F133: 133 | G133: =(A133*60+1504084500)/86400+25569 -> 2017-08-30T11:20:00
A134: 126 | B134: 2464 | C134: 2465 | D134: 2464 | E134: 2464.95 | F134: 236 | G134: =(A134*60+1504084500)/86400+25569 -> 2017-08-30T11:21:00
A135: 127 | B135: 2463.3 | C135: 2464 | D135: 2463.2 | E135: 2463.75 | F135: 209 | G135: =(A135*60+1504084500)/86400+25569 -> 2017-08-30T11:22:00
A136: 128 | B136: 2462.7 | C136: 2463.3 | D136: 2462.2 | E136: 2463.3 | F136: 1210 | G136: =(A136*60+1504084500)/86400+25569 -> 2017-08-30T11:23:00
A137: 129 | B137: 2463.1 | C137: 2463.8 | D137: 2462.7 | E137: 2462.7 | F137: 213 | G137: =(A137*60+1504084500)/86400+25569 -> 2017-08-30T11:24:00
A138: 130 | B138: 2463.4 | C138: 2463.8 | D138: 2463.1 | E138: 2463.8 | F138: 23 | G138: =(A138*60+1504084500)/86400+25569 -> 2017-08-30T11:25:00
A139: 131 | B139: 2462.65 | C139: 2463.15 | D139: 2462.1 | E139: 2463.15 | F139: 370 | G139: =(A139*60+1504084500)/86400+25569 -> 2017-08-30T11:26:00
A140: 132 | B140: 2462.15 | C140: 2463.35 | D140: 2462.1 | E140: 2462.65 | F140: 203 | G140: =(A140*60+1504084500)/86400+25569 -> 2017-08-30T11:27:00
A141: 133 | B141: 2463.65 | C141: 2463.65 | D141: 2462.15 | E141: 2462.15 | F141: 194 | G141: =(A141*60+1504084500)/86400+25569 -> 2017-08-30T11:28:00
A142: 134 | B142: 2463.7 | C142: 2463.8 | D142: 2462.55 | E142: 2462.55 | F142: 294 | G142: =(A142*60+1504084500)/86400+25569 -> 2017-08-30T11:29:00
A143: 135 | B143: 2464 | C143: 2464.2 | D143: 2463.05 | E143: 2463.65 | F143: 211 | G143: =(A143*60+1504084500)/86400+25569 -> 2017-08-30T11:30:00
A144: 136 | B144: 2464.4 | C144: 2464.65 | D144: 2463.2 | E144: 2464 | F144: 147 | G144: =(A144*60+1504084500)/86400+25569 -> 2017-08-30T11:31:00
A145: 137 | B145: 2465.15 | C145: 2465.15 | D145: 2463.85 | E145: 2464.4 | F145: 212 | G145: =(A145*60+1504084500)/86400+25569 -> 2017-08-30T11:32:00
A146: 138 | B146: 2464.2 | C146: 2465.15 | D146: 2464.2 | E146: 2465.15 | F146: 151 | G146: =(A146*60+1504084500)/86400+25569 -> 2017-08-30T11:33:00
A147: 139 | B147: 2464 | C147: 2464.3 | D147: 2463.95 | E147: 2464.2 | F147: 84 | G147: =(A147*60+1504084500)/86400+25569 -> 2017-08-30T11:34:00
A148: 140 | B148: 2464.05 | C148: 2464.4 | D148: 2464 | E148: 2464.4 | F148: 122 | G148: =(A148*60+1504084500)/86400+25569 -> 2017-08-30T11:35:00
A149: 141 | B149: 2464.7 | C149: 2465.4 | D149: 2464 | E149: 2464.2 | F149: 572 | G149: =(A149*60+1504084500)/86400+25569 -> 2017-08-30T11:36:00
A150: 142 | B150: 2464.2 | C150: 2465.4 | D150: 2464.15 | E150: 2465.4 | F150: 66 | G150: =(A150*60+1504084500)/86400+25569 -> 2017-08-30T11:37:00
A151: 143 | B151: 2463.65 | C151: 2465.1 | D151: 2463.65 | E151: 2465.1 | F151: 1084 | G151: =(A151*60+1504084500)/86400+25569 -> 2017-08-30T11:38:00
A152: 144 | B152: 2463.65 | C152: 2463.85 | D152: 2463.15 | E152: 2463.6 | F152: 222 | G152: =(A152*60+1504084500)/86400+25569 -> 2017-08-30T11:39:00
A153: 145 | B153: 2463.6 | C153: 2464.3 | D153: 2463.5 | E153: 2464 | F153: 666 | G153: =(A153*60+1504084500)/86400+25569 -> 2017-08-30T11:40:00
A154: 146 | B154: 2463.55 | C154: 2464 | D154: 2463.15 | E154: 2464 | F154: 827 | G154: =(A154*60+1504084500)/86400+25569 -> 2017-08-30T11:41:00
A155: 147 | B155: 2464.4 | C155: 2464.7 | D155: 2462.65 | E155: 2462.65 | F155: 676 | G155: =(A155*60+1504084500)/86400+25569 -> 2017-08-30T11:42:00
A156: 148 | B156: 2463.85 | C156: 2464.75 | D156: 2463.6 | E156: 2464.1 | F156: 325 | G156: =(A156*60+1504084500)/86400+25569 -> 2017-08-30T11:43:00
A157: 149 | B157: 2464.2 | C157: 2464.75 | D157: 2462.75 | E157: 2463.85 | F157: 2259 | G157: =(A157*60+1504084500)/86400+25569 -> 2017-08-30T11:44:00
A158: 150 | B158: 2464.25 | C158: 2464.6 | D158: 2463.55 | E158: 2463.6 | F158: 219 | G158: =(A158*60+1504084500)/86400+25569 -> 2017-08-30T11:45:00
A159: 151 | B159: 2464 | C159: 2464.75 | D159: 2463.2 | E159: 2464.75 | F159: 439 | G159: =(A159*60+1504084500)/86400+25569 -> 2017-08-30T11:46:00
A160: 152 | B160: 2464.5 | C160: 2464.75 | D160: 2464 | E160: 2464.2 | F160: 573 | G160: =(A160*60+1504084500)/86400+25569 -> 2017-08-30T11:47:00
A161: 153 | B161: 2464.6 | C161: 2465 | D161: 2464 | E161: 2464.5 | F161: 656 | G161: =(A161*60+1504084500)/86400+25569 -> 2017-08-30T11:48:00
A162: 154 | B162: 2464.1 | C162: 2465.1 | D162: 2464 | E162: 2465 | F162: 210 | G162: =(A162*60+1504084500)/86400+25569 -> 2017-08-30T11:49:00
A163: 155 | B163: 2464.7 | C163: 2465.65 | D163: 2464.2 | E163: 2465.3 | F163: 287 | G163: =(A163*60+1504084500)/86400+25569 -> 2017-08-30T11:50:00
A164: 156 | B164: 2465.45 | C164: 2465.8 | D164: 2464.7 | E164: 2465.45 | F164: 207 | G164: =(A164*60+1504084500)/86400+25569 -> 2017-08-30T11:51:00
A165: 157 | B165: 2467.15 | C165: 2470.05 | D165: 2465.6 | E165: 2466.25 | F165: 7300 | G165: =(A165*60+1504084500)/86400+25569 -> 2017-08-30T11:52:00
A166: 158 | B166: 2468.2 | C166: 2469.45 | D166: 2467.1 | E166: 2467.15 | F166: 3802 | G166: =(A166*60+1504084500)/86400+25569 -> 2017-08-30T11:53:00
A167: 159 | B167: 2472.75 | C167: 2472.75 | D167: 2468.25 | E167: 2468.8 | F167: 2900 | G167: =(A167*60+1504084500)/86400+25569 -> 2017-08-30T11:54:00
A168: 160 | B168: 2471.85 | C168: 2473.15 | D168: 2470.85 | E168: 2471.7 | F168: 5149 | G168: =(A168*60+1504084500)/86400+25569 -> 2017-08-30T11:55:00
A169: 161 | B169: 2473 | C169: 2474 | D169: 2471.9 | E169: 2471.9 | F169: 4140 | G169: =(A169*60+1504084500)/86400+25569 -> 2017-08-30T11:56:00
A170: 162 | B170: 2473.75 | C170: 2473.95 | D170: 2472.75 | E170: 2472.75 | F170: 1109 | G170: =(A170*60+1504084500)/86400+25569 -> 2017-08-30T11:57:00
A171: 163 | B171: 2472.35 | C171: 2473.75 | D171: 2472 | E171: 2473.75 | F171: 1200 | G171: =(A171*60+1504084500)/86400+25569 -> 2017-08-30T11:58:00
A172: 164 | B172: 2472.6 | C172: 2472.6 | D172: 2471.9 | E172: 2472.15 | F172: 600 | G172: =(A172*60+1504084500)/86400+25569 -> 2017-08-30T11:59:00
A173: 165 | B173: 2471.95 | C173: 2472.8 | D173: 2471.45 | E173: 2472.6 | F173: 1340 | G173: =(A173*60+1504084500)/86400+25569 -> 2017-08-30T12:00:00
A174: 166 | B174: 2472.75 | C174: 2473 | D174: 2471.7 | E174: 2471.7 | F174: 1612 | G174: =(A174*60+1504084500)/86400+25569 -> 2017-08-30T12:01:00
A175: 167 | B175: 2472.05 | C175: 2473 | D175: 2472 | E175: 2472.75 | F175: 1868 | G175: =(A175*60+1504084500)/86400+25569 -> 2017-08-30T12:02:00
A176: 168 | B176: 2472.7 | C176: 2473 | D176: 2472.05 | E176: 2473 | F176: 217 | G176: =(A176*60+1504084500)/86400+25569 -> 2017-08-30T12:03:00
A177: 169 | B177: 2472.5 | C177: 2473 | D177: 2472 | E177: 2472.9 | F177: 1032 | G177: =(A177*60+1504084500)/86400+25569 -> 2017-08-30T12:04:00
A178: 170 | B178: 2472.5 | C178: 2472.5 | D178: 2471.8 | E178: 2472.5 | F178: 644 | G178: =(A178*60+1504084500)/86400+25569 -> 2017-08-30T12:05:00
A179: 171 | B179: 2472.2 | C179: 2473 | D179: 2471.25 | E179: 2472.1 | F179: 1492 | G179: =(A179*60+1504084500)/86400+25569 -> 2017-08-30T12:06:00
A180: 172 | B180: 2472.55 | C180: 2473.75 | D180: 2472.2 | E180: 2472.2 | F180: 729 | G180: =(A180*60+1504084500)/86400+25569 -> 2017-08-30T12:07:00
A181: 173 | B181: 2474.35 | C181: 2474.9 | D181: 2472.55 | E181: 2472.55 | F181: 1667 | G181: =(A181*60+1504084500)/86400+25569 -> 2017-08-30T12:08:00
A182: 174 | B182: 2473.95 | C182: 2474 | D182: 2473.25 | E182: 2473.5 | F182: 332 | G182: =(A182*60+1504084500)/86400+25569 -> 2017-08-30T12:09:00
A183: 175 | B183: 2475 | C183: 2475 | D183: 2473.75 | E183: 2474.85 | F183: 1077 | G183: =(A183*60+1504084500)/86400+25569 -> 2017-08-30T12:10:00
A184: 176 | B184: 2473.05 | C184: 2475 | D184: 2473 | E184: 2475 | F184: 847 | G184: =(A184*60+1504084500)/86400+25569 -> 2017-08-30T12:11:00
A185: 177 | B185: 2473.95 | C185: 2474 | D185: 2473 | E185: 2473.05 | F185: 190 | G185: =(A185*60+1504084500)/86400+25569 -> 2017-08-30T12:12:00
A186: 178 | B186: 2473.05 | C186: 2474 | D186: 2473 | E186: 2474 | F186: 493 | G186: =(A186*60+1504084500)/86400+25569 -> 2017-08-30T12:13:00
A187: 179 | B187: 2473.95 | C187: 2474 | D187: 2473.05 | E187: 2473.05 | F187: 294 | G187: =(A187*60+1504084500)/86400+25569 -> 2017-08-30T12:14:00
A188: 180 | B188: 2473 | C188: 2473.95 | D188: 2473 | E188: 2473.05 | F188: 160 | G188: =(A188*60+1504084500)/86400+25569 -> 2017-08-30T12:15:00
A189: 181 | B189: 2473.1 | C189: 2473.95 | D189: 2473 | E189: 2473 | F189: 706 | G189: =(A189*60+1504084500)/86400+25569 -> 2017-08-30T12:16:00
A190: 182 | B190: 2473.2 | C190: 2473.75 | D190: 2473 | E190: 2473.75 | F190: 260 | G190: =(A190*60+1504084500)/86400+25569 -> 2017-08-30T12:17:00
A191: 183 | B191: 2474.05 | C191: 2475 | D191: 2473.15 | E191: 2473.75 | F191: 1090 | G191: =(A191*60+1504084500)/86400+25569 -> 2017-08-30T12:18:00
A192: 184 | B192: 2474.3 | C192: 2474.85 | D192: 2474.15 | E192: 2474.15 | F192: 113 | G192: =(A192*60+1504084500)/86400+25569 -> 2017-08-30T12:19:00
A193: 185 | B193: 2474.8 | C193: 2474.9 | D193: 2474.2 | E193: 2474.9 | F193: 162 | G193: =(A193*60+1504084500)/86400+25569 -> 2017-08-30T12:20:00
A194: 186 | B194: 2477.45 | C194: 2478.8 | D194: 2474.25 | E194: 2474.75 | F194: 6590 | G194: =(A194*60+1504084500)/86400+25569 -> 2017-08-30T12:21:00
A195: 187 | B195: 2477 | C195: 2478.8 | D195: 2476 | E195: 2477.85 | F195: 2253 | G195: =(A195*60+1504084500)/86400+25569 -> 2017-08-30T12:22:00
A196: 188 | B196: 2478.5 | C196: 2479.1 | D196: 2477 | E196: 2477.05 | F196: 1595 | G196: =(A196*60+1504084500)/86400+25569 -> 2017-08-30T12:23:00
A197: 189 | B197: 2481.1 | C197: 2482 | D197: 2480 | E197: 2480 | F197: 2275 | G197: =(A197*60+1504084500)/86400+25569 -> 2017-08-30T12:24:00
A198: 190 | B198: 2480.85 | C198: 2481.35 | D198: 2478.2 | E198: 2481.1 | F198: 4401 | G198: =(A198*60+1504084500)/86400+25569 -> 2017-08-30T12:25:00
A199: 191 | B199: 2482 | C199: 2483.2 | D199: 2482 | E199: 2482.9 | F199: 5302 | G199: =(A199*60+1504084500)/86400+25569 -> 2017-08-30T12:26:00
A200: 192 | B200: 2481.5 | C200: 2482.5 | D200: 2481 | E200: 2482 | F200: 3795 | G200: =(A200*60+1504084500)/86400+25569 -> 2017-08-30T12:27:00
... 5233 more rows

Sheet GetData
A1: Date | B1: Open | C1: High | D1: Low | E1: Close
A2: 2017-08-30T09:15:00 | B2: 2481 | C2: 2481 | D2: 2481 | E2: 2481
A3: 2017-08-30T09:16:00 | B3: 2476.1 | C3: 2484.25 | D3: 2463 | E3: 2463.95
A4: 2017-08-30T09:17:00 | B4: 2463 | C4: 2465 | D4: 2462.85 | E4: 2464.95
A5: 2017-08-30T09:18:00 | B5: 2465.2 | C5: 2466.85 | D5: 2462.3 | E5: 2463
A6: 2017-08-30T09:19:00 | B6: 2463.4 | C6: 2468.75 | D6: 2463.4 | E6: 2466
A7: 2017-08-30T09:20:00 | B7: 2465 | C7: 2468.1 | D7: 2465 | E7: 2465.5
A8: 2017-08-30T09:21:00 | B8: 2465 | C8: 2469.45 | D8: 2465 | E8: 2467.3
A9: 2017-08-30T09:22:00 | B9: 2468.4 | C9: 2470.45 | D9: 2467.5 | E9: 2469
A10: 2017-08-30T09:23:00 | B10: 2469 | C10: 2470.4 | D10: 2467.1 | E10: 2468.1
A11: 2017-08-30T09:24:00 | B11: 2468.05 | C11: 2469.1 | D11: 2467.9 | E11: 2469.1
A12: 2017-08-30T09:25:00 | B12: 2470 | C12: 2470.4 | D12: 2467.9 | E12: 2470.1
A13: 2017-08-30T09:26:00 | B13: 2470 | C13: 2472.4 | D13: 2468.05 | E13: 2468.05 | G13: Symbol | H13: TCS
A14: 2017-08-30T09:27:00 | B14: 2468 | C14: 2470 | D14: 2467 | E14: 2468.5 | G14: Exchange | H14: NSE
A15: 2017-08-30T09:28:00 | B15: 2468.5 | C15: 2469.45 | D15: 2467 | E15: 2468.15 | G15: Interval (mins) | H15: 1
A16: 2017-08-30T09:29:00 | B16: 2468.15 | C16: 2469.4 | D16: 2468.15 | E16: 2468.6 | G16: Number of Days | H16: 15
A17: 2017-08-30T09:30:00 | B17: 2469.15 | C17: 2469.3 | D17: 2468.6 | E17: 2469.2
A18: 1.128251715e+17
A19: 2017-08-30T09:32:00 | B19: 2468 | C19: 2469.75 | D19: 2466.9 | E19: 2468
A20: 2017-08-30T09:33:00 | B20: 2468 | C20: 2471 | D20: 2467.05 | E20: 2470.95
A21: 2017-08-30T09:34:00 | B21: 2470.1 | C21: 2471 | D21: 2469.7 | E21: 2470.5
A22: 2017-08-30T09:35:00 | B22: 2470.35 | C22: 2474 | D22: 2469.7 | E22: 2473.95
A23: 2017-08-30T09:36:00 | B23: 2473.7 | C23: 2476.95 | D23: 2472.4 | E23: 2476.9
A24: 2017-08-30T09:37:00 | B24: 2476.9 | C24: 2476.9 | D24: 2471 | E24: 2471.15
A25: 2017-08-30T09:38:00 | B25: 2471.3 | C25: 2471.95 | D25: 2469.7 | E25: 2470.05
A26: 2017-08-30T09:39:00 | B26: 2470 | C26: 2470.2 | D26: 2467.4 | E26: 2469.95
A27: 2017-08-30T09:40:00 | B27: 2468 | C27: 2469.4 | D27: 2467 | E27: 2467.1
A28: 2017-08-30T09:41:00 | B28: 2467.1 | C28: 2468.8 | D28: 2467.1 | E28: 2468.05
A29: 2017-08-30T09:42:00 | B29: 2468.4 | C29: 2470.8 | D29: 2468.05 | E29: 2468.3
A30: 2017-08-30T09:43:00 | B30: 2470.25 | C30: 2470.25 | D30: 2468.15 | E30: 2468.75
A31: 2017-08-30T09:44:00 | B31: 2468.8 | C31: 2468.8 | D31: 2468.15 | E31: 2468.25
A32: 2017-08-30T09:45:00 | B32: 2468.65 | C32: 2468.75 | D32: 2468.5 | E32: 2468.6
A33: 2017-08-30T09:46:00 | B33: 2468.5 | C33: 2468.5 | D33: 2465.65 | E33: 2466.5
A34: 2017-08-30T09:47:00 | B34: 2465.65 | C34: 2466.85 | D34: 2465.2 | E34: 2466.7
A35: 2017-08-30T09:48:00 | B35: 2466.65 | C35: 2469.2 | D35: 2465.2 | E35: 2466.45
A36: 2017-08-30T09:49:00 | B36: 2467.4 | C36: 2467.95 | D36: 2466.4 | E36: 2467
A37: 2017-08-30T09:50:00 | B37: 2467.75 | C37: 2467.75 | D37: 2466 | E37: 2466
A38: 2017-08-30T09:51:00 | B38: 2467 | C38: 2467.6 | D38: 2466 | E38: 2466
A39: 2017-08-30T09:52:00 | B39: 2466 | C39: 2466.4 | D39: 2465.8 | E39: 2466.4
A40: 2017-08-30T09:53:00 | B40: 2466.5 | C40: 2468.2 | D40: 2466 | E40: 2468.2
A41: 2017-08-30T09:54:00 | B41: 2467.85 | C41: 2468.1 | D41: 2465.55 | E41: 2465.55
A42: 2017-08-30T09:55:00 | B42: 2466.85 | C42: 2466.95 | D42: 2464.15 | E42: 2464.15
A43: 2017-08-30T09:56:00 | B43: 2465.9 | C43: 2467.85 | D43: 2465 | E43: 2467.7
A44: 2017-08-30T09:57:00 | B44: 2467.7 | C44: 2467.7 | D44: 2466.25 | E44: 2467.55
A45: 2017-08-30T09:58:00 | B45: 2466.2 | C45: 2467.5 | D45: 2466.05 | E45: 2466.1
A46: 2017-08-30T09:59:00 | B46: 2467.4 | C46: 2467.4 | D46: 2465.95 | E46: 2465.95
A47: 2017-08-30T10:00:00 | B47: 2466.15 | C47: 2466.3 | D47: 2465.95 | E47: 2466.15
A48: 2017-08-30T10:01:00 | B48: 2466.15 | C48: 2473.55 | D48: 2466.15 | E48: 2468.9
A49: 2017-08-30T10:02:00 | B49: 2468.5 | C49: 2468.9 | D49: 2467.95 | E49: 2468
A50: 2017-08-30T10:03:00 | B50: 2468.85 | C50: 2468.85 | D50: 2468 | E50: 2468.7
A51: 2017-08-30T10:04:00 | B51: 2468.85 | C51: 2468.85 | D51: 2467.7 | E51: 2467.7
A52: 2017-08-30T10:05:00 | B52: 2468.8 | C52: 2468.8 | D52: 2467.8 | E52: 2468
A53: 2017-08-30T10:06:00 | B53: 2468 | C53: 2468 | D53: 2467.2 | E53: 2468
A54: 2017-08-30T10:07:00 | B54: 2467.4 | C54: 2467.95 | D54: 2466 | E54: 2466.7
A55: 2017-08-30T10:08:00 | B55: 2466.7 | C55: 2466.8 | D55: 2466 | E55: 2466.8
A56: 2017-08-30T10:09:00 | B56: 2466.95 | C56: 2467.2 | D56: 2466.8 | E56: 2467.2
A57: 2017-08-30T10:10:00 | B57: 2467.2 | C57: 2467.65 | D57: 2466.75 | E57: 2467.2
A58: 2017-08-30T10:11:00 | B58: 2466.1 | C58: 2467.3 | D58: 2465.55 | E58: 2467.25
A59: 2017-08-30T10:12:00 | B59: 2467.25 | C59: 2467.45 | D59: 2465.8 | E59: 2467.3
A60: 2017-08-30T10:13:00 | B60: 2467.65 | C60: 2468 | D60: 2466.05 | E60: 2467.95
A61: 2017-08-30T10:14:00 | B61: 2467.95 | C61: 2467.95 | D61: 2466.05 | E61: 2467.55
A62: 2017-08-30T10:15:00 | B62: 2467.65 | C62: 2467.8 | D62: 2467.65 | E62: 2467.8
A63: 2017-08-30T10:16:00 | B63: 2467.6 | C63: 2467.8 | D63: 2466.1 | E63: 2467.55
A64: 2017-08-30T10:17:00 | B64: 2467.45 | C64: 2467.45 | D64: 2465.2 | E64: 2466.35
A65: 2017-08-30T10:18:00 | B65: 2466.35 | C65: 2466.4 | D65: 2465.5 | E65: 2466.4
A66: 2017-08-30T10:19:00 | B66: 2466.35 | C66: 2466.35 | D66: 2465.45 | E66: 2465.55
A67: 2017-08-30T10:20:00 | B67: 2466.15 | C67: 2466.2 | D67: 2465 | E67: 2465
A68: 2017-08-30T10:21:00 | B68: 2465 | C68: 2466.3 | D68: 2465 | E68: 2466.3
A69: 2017-08-30T10:22:00 | B69: 2466.3 | C69: 2466.3 | D69: 2465.1 | E69: 2465.1
A70: 2017-08-30T10:23:00 | B70: 2466 | C70: 2466 | D70: 2464 | E70: 2464.4
A71: 2017-08-30T10:24:00 | B71: 2465.9 | C71: 2465.9 | D71: 2464 | E71: 2464.1
A72: 2017-08-30T10:25:00 | B72: 2464.55 | C72: 2465.45 | D72: 2462.25 | E72: 2462.25
A73: 2017-08-30T10:26:00 | B73: 2461.85 | C73: 2463 | D73: 2461 | E73: 2461.55
A74: 2017-08-30T10:27:00 | B74: 2462.35 | C74: 2462.6 | D74: 2461.05 | E74: 2462.6
A75: 2017-08-30T10:28:00 | B75: 2462.55 | C75: 2462.8 | D75: 2461.05 | E75: 2462
A76: 2017-08-30T10:29:00 | B76: 2463.1 | C76: 2463.3 | D76: 2462.5 | E76: 2463.25
A77: 2017-08-30T10:30:00 | B77: 2463.5 | C77: 2466.95 | D77: 2463.3 | E77: 2466.4
A78: 2017-08-30T10:31:00 | B78: 2465.5 | C78: 2466.5 | D78: 2465 | E78: 2466.5
A79: 2017-08-30T10:32:00 | B79: 2466.4 | C79: 2466.5 | D79: 2465.6 | E79: 2466
A80: 2017-08-30T10:33:00 | B80: 2466.5 | C80: 2466.75 | D80: 2465.2 | E80: 2466
A81: 2017-08-30T10:34:00 | B81: 2466.85 | C81: 2466.85 | D81: 2465 | E81: 2465.45
A82: 2017-08-30T10:35:00 | B82: 2465.9 | C82: 2465.9 | D82: 2464.15 | E82: 2464.15
A83: 2017-08-30T10:36:00 | B83: 2465.3 | C83: 2465.35 | D83: 2464.15 | E83: 2464.2
A84: 2017-08-30T10:37:00 | B84: 2465.05 | C84: 2465.05 | D84: 2464.15 | E84: 2465.05
A85: 2017-08-30T10:38:00 | B85: 2465.25 | C85: 2465.35 | D85: 2464 | E85: 2464
A86: 2017-08-30T10:39:00 | B86: 2464.95 | C86: 2464.95 | D86: 2463.1 | E86: 2464
A87: 2017-08-30T10:40:00 | B87: 2464.7 | C87: 2464.7 | D87: 2463.1 | E87: 2463.1
A88: 2017-08-30T10:41:00 | B88: 2463.1 | C88: 2463.3 | D88: 2462 | E88: 2462.6
A89: 2017-08-30T10:42:00 | B89: 2462.55 | C89: 2463.2 | D89: 2462.05 | E89: 2462.1
A90: 2017-08-30T10:43:00 | B90: 2463.3 | C90: 2463.55 | D90: 2462.3 | E90: 2463
A91: 2017-08-30T10:44:00 | B91: 2462.3 | C91: 2463.4 | D91: 2462.25 | E91: 2462.6
A92: 2017-08-30T10:45:00 | B92: 2462.55 | C92: 2463.45 | D92: 2462.55 | E92: 2463
A93: 2017-08-30T10:46:00 | B93: 2462.6 | C93: 2463.35 | D93: 2462.55 | E93: 2462.55
A94: 2017-08-30T10:47:00 | B94: 2463.75 | C94: 2463.75 | D94: 2462.35 | E94: 2462.65
A95: 2017-08-30T10:48:00 | B95: 2462.65 | C95: 2463 | D95: 2462.6 | E95: 2462.6
A96: 2017-08-30T10:49:00 | B96: 2463 | C96: 2463.15 | D96: 2462.6 | E96: 2462.75
A97: 2017-08-30T10:50:00 | B97: 2462.75 | C97: 2462.95 | D97: 2462.65 | E97: 2462.95
A98: 2017-08-30T10:51:00 | B98: 2462.75 | C98: 2463.5 | D98: 2462.75 | E98: 2463.5
A99: 2017-08-30T10:52:00 | B99: 2463.75 | C99: 2463.85 | D99: 2463.5 | E99: 2463.5
A100: 2017-08-30T10:53:00 | B100: 2463.85 | C100: 2464.1 | D100: 2463.5 | E100: 2463.85
A101: 2017-08-30T10:54:00 | B101: 2464.15 | C101: 2464.2 | D101: 2463.5 | E101: 2463.5
A102: 2017-08-30T10:55:00 | B102: 2464.05 | C102: 2464.2 | D102: 2464 | E102: 2464
A103: 2017-08-30T10:56:00 | B103: 2464.2 | C103: 2464.2 | D103: 2463 | E103: 2463.2
A104: 2017-08-30T10:57:00 | B104: 2463.05 | C104: 2463.3 | D104: 2463.05 | E104: 2463.1
A105: 2017-08-30T10:58:00 | B105: 2463.05 | C105: 2463.15 | D105: 2463.05 | E105: 2463.15
A106: 2017-08-30T10:59:00 | B106: 2463.3 | C106: 2464 | D106: 2463.3 | E106: 2464
A107: 2017-08-30T11:00:00 | B107: 2463.55 | C107: 2464.8 | D107: 2463.35 | E107: 2463.45
A108: 2017-08-30T11:01:00 | B108: 2464.75 | C108: 2464.75 | D108: 2463.4 | E108: 2463.4
A109: 2017-08-30T11:02:00 | B109: 2463.4 | C109: 2464.3 | D109: 2463.05 | E109: 2463.45
A110: 2017-08-30T11:03:00 | B110: 2463.8 | C110: 2464.05 | D110: 2463.8 | E110: 2463.8
A111: 2017-08-30T11:04:00 | B111: 2463.8 | C111: 2464.2 | D111: 2463.05 | E111: 2464.2
A112: 2017-08-30T11:05:00 | B112: 2464.2 | C112: 2464.2 | D112: 2464.2 | E112: 2464.2
A113: 2017-08-30T11:06:00 | B113: 2464.2 | C113: 2464.2 | D113: 2463.75 | E113: 2464.2
A114: 2017-08-30T11:07:00 | B114: 2463.95 | C114: 2463.95 | D114: 2463.2 | E114: 2463.2
A115: 2017-08-30T11:08:00 | B115: 2463.2 | C115: 2464.2 | D115: 2463.2 | E115: 2464.2
A116: 2017-08-30T11:09:00 | B116: 2464.2 | C116: 2464.85 | D116: 2464.2 | E116: 2464.85
A117: 2017-08-30T11:10:00 | B117: 2465 | C117: 2465.45 | D117: 2463.85 | E117: 2464.9
A118: 2017-08-30T11:11:00 | B118: 2464.9 | C118: 2465.25 | D118: 2464 | E118: 2464
A119: 2017-08-30T11:12:00 | B119: 2465.35 | C119: 2465.4 | D119: 2463.2 | E119: 2463.7
A120: 2017-08-30T11:13:00 | B120: 2464.7 | C120: 2464.75 | D120: 2463.25 | E120: 2464.7
A121: 2017-08-30T11:14:00 | B121: 2464.9 | C121: 2465.1 | D121: 2464.75 | E121: 2465
A122: 2017-08-30T11:15:00 | B122: 2465 | C122: 2465.8 | D122: 2465 | E122: 2465.05
A123: 2017-08-30T11:16:00 | B123: 2465.5 | C123: 2465.5 | D123: 2463.35 | E123: 2463.35
A124: 2017-08-30T11:17:00 | B124: 2464.05 | C124: 2464.45 | D124: 2463.5 | E124: 2463.5
A125: 2017-08-30T11:18:00 | B125: 2464.3 | C125: 2464.3 | D125: 2463.5 | E125: 2464
A126: 2017-08-30T11:19:00 | B126: 2464 | C126: 2464 | D126: 2463.2 | E126: 2463.85
A127: 2017-08-30T11:20:00 | B127: 2463.85 | C127: 2464.75 | D127: 2463.75 | E127: 2464.75
A128: 2017-08-30T11:21:00 | B128: 2464.95 | C128: 2465 | D128: 2464 | E128: 2464
A129: 2017-08-30T11:22:00 | B129: 2463.75 | C129: 2464 | D129: 2463.2 | E129: 2463.3
A130: 2017-08-30T11:23:00 | B130: 2463.3 | C130: 2463.3 | D130: 2462.2 | E130: 2462.7
A131: 2017-08-30T11:24:00 | B131: 2462.7 | C131: 2463.8 | D131: 2462.7 | E131: 2463.1
A132: 2017-08-30T11:25:00 | B132: 2463.8 | C132: 2463.8 | D132: 2463.1 | E132: 2463.4
A133: 2017-08-30T11:26:00 | B133: 2463.15 | C133: 2463.15 | D133: 2462.1 | E133: 2462.65
A134: 2017-08-30T11:27:00 | B134: 2462.65 | C134: 2463.35 | D134: 2462.1 | E134: 2462.15
A135: 2017-08-30T11:28:00 | B135: 2462.15 | C135: 2463.65 | D135: 2462.15 | E135: 2463.65
A136: 2017-08-30T11:29:00 | B136: 2462.55 | C136: 2463.8 | D136: 2462.55 | E136: 2463.7
A137: 2017-08-30T11:30:00 | B137: 2463.65 | C137: 2464.2 | D137: 2463.05 | E137: 2464
A138: 2017-08-30T11:31:00 | B138: 2464 | C138: 2464.65 | D138: 2463.2 | E138: 2464.4
A139: 2017-08-30T11:32:00 | B139: 2464.4 | C139: 2465.15 | D139: 2463.85 | E139: 2465.15
A140: 2017-08-30T11:33:00 | B140: 2465.15 | C140: 2465.15 | D140: 2464.2 | E140: 2464.2
A141: 2017-08-30T11:34:00 | B141: 2464.2 | C141: 2464.3 | D141: 2463.95 | E141: 2464
A142: 2017-08-30T11:35:00 | B142: 2464.4 | C142: 2464.4 | D142: 2464 | E142: 2464.05
A143: 2017-08-30T11:36:00 | B143: 2464.2 | C143: 2465.4 | D143: 2464 | E143: 2464.7
A144: 2017-08-30T11:37:00 | B144: 2465.4 | C144: 2465.4 | D144: 2464.15 | E144: 2464.2
A145: 2017-08-30T11:38:00 | B145: 2465.1 | C145: 2465.1 | D145: 2463.65 | E145: 2463.65
A146: 2017-08-30T11:39:00 | B146: 2463.6 | C146: 2463.85 | D146: 2463.15 | E146: 2463.65
A147: 2017-08-30T11:40:00 | B147: 2464 | C147: 2464.3 | D147: 2463.5 | E147: 2463.6
A148: 2017-08-30T11:41:00 | B148: 2464 | C148: 2464 | D148: 2463.15 | E148: 2463.55
A149: 2017-08-30T11:42:00 | B149: 2462.65 | C149: 2464.7 | D149: 2462.65 | E149: 2464.4
A150: 2017-08-30T11:43:00 | B150: 2464.1 | C150: 2464.75 | D150: 2463.6 | E150: 2463.85
A151: 2017-08-30T11:44:00 | B151: 2463.85 | C151: 2464.75 | D151: 2462.75 | E151: 2464.2
A152: 2017-08-30T11:45:00 | B152: 2463.6 | C152: 2464.6 | D152: 2463.55 | E152: 2464.25
A153: 2017-08-30T11:46:00 | B153: 2464.75 | C153: 2464.75 | D153: 2463.2 | E153: 2464
A154: 2017-08-30T11:47:00 | B154: 2464.2 | C154: 2464.75 | D154: 2464 | E154: 2464.5
A155: 2017-08-30T11:48:00 | B155: 2464.5 | C155: 2465 | D155: 2464 | E155: 2464.6
A156: 2017-08-30T11:49:00 | B156: 2465 | C156: 2465.1 | D156: 2464 | E156: 2464.1
A157: 2017-08-30T11:50:00 | B157: 2465.3 | C157: 2465.65 | D157: 2464.2 | E157: 2464.7
A158: 2017-08-30T11:51:00 | B158: 2465.45 | C158: 2465.8 | D158: 2464.7 | E158: 2465.45
A159: 2017-08-30T11:52:00 | B159: 2466.25 | C159: 2470.05 | D159: 2465.6 | E159: 2467.15
A160: 2017-08-30T11:53:00 | B160: 2467.15 | C160: 2469.45 | D160: 2467.1 | E160: 2468.2
A161: 2017-08-30T11:54:00 | B161: 2468.8 | C161: 2472.75 | D161: 2468.25 | E161: 2472.75
A162: 2017-08-30T11:55:00 | B162: 2471.7 | C162: 2473.15 | D162: 2470.85 | E162: 2471.85
A163: 2017-08-30T11:56:00 | B163: 2471.9 | C163: 2474 | D163: 2471.9 | E163: 2473
A164: 2017-08-30T11:57:00 | B164: 2472.75 | C164: 2473.95 | D164: 2472.75 | E164: 2473.75
A165: 2017-08-30T11:58:00 | B165: 2473.75 | C165: 2473.75 | D165: 2472 | E165: 2472.35
A166: 2017-08-30T11:59:00 | B166: 2472.15 | C166: 2472.6 | D166: 2471.9 | E166: 2472.6
A167: 2017-08-30T12:00:00 | B167: 2472.6 | C167: 2472.8 | D167: 2471.45 | E167: 2471.95
A168: 2017-08-30T12:01:00 | B168: 2471.7 | C168: 2473 | D168: 2471.7 | E168: 2472.75
A169: 2017-08-30T12:02:00 | B169: 2472.75 | C169: 2473 | D169: 2472 | E169: 2472.05
A170: 2017-08-30T12:03:00 | B170: 2473 | C170: 2473 | D170: 2472.05 | E170: 2472.7
A171: 2017-08-30T12:04:00 | B171: 2472.9 | C171: 2473 | D171: 2472 | E171: 2472.5
A172: 2017-08-30T12:05:00 | B172: 2472.5 | C172: 2472.5 | D172: 2471.8 | E172: 2472.5
A173: 2017-08-30T12:06:00 | B173: 2472.1 | C173: 2473 | D173: 2471.25 | E173: 2472.2
A174: 2017-08-30T12:07:00 | B174: 2472.2 | C174: 2473.75 | D174: 2472.2 | E174: 2472.55
A175: 2017-08-30T12:08:00 | B175: 2472.55 | C175: 2474.9 | D175: 2472.55 | E175: 2474.35
A176: 2017-08-30T12:09:00 | B176: 2473.5 | C176: 2474 | D176: 2473.25 | E176: 2473.95
A177: 2017-08-30T12:10:00 | B177: 2474.85 | C177: 2475 | D177: 2473.75 | E177: 2475
A178: 2017-08-30T12:11:00 | B178: 2475 | C178: 2475 | D178: 2473 | E178: 2473.05
A179: 2017-08-30T12:12:00 | B179: 2473.05 | C179: 2474 | D179: 2473 | E179: 2473.95
A180: 2017-08-30T12:13:00 | B180: 2474 | C180: 2474 | D180: 2473 | E180: 2473.05
A181: 2017-08-30T12:14:00 | B181: 2473.05 | C181: 2474 | D181: 2473.05 | E181: 2473.95
A182: 2017-08-30T12:15:00 | B182: 2473.05 | C182: 2473.95 | D182: 2473 | E182: 2473
A183: 2017-08-30T12:16:00 | B183: 2473 | C183: 2473.95 | D183: 2473 | E183: 2473.1
A184: 2017-08-30T12:17:00 | B184: 2473.75 | C184: 2473.75 | D184: 2473 | E184: 2473.2
A185: 2017-08-30T12:18:00 | B185: 2473.75 | C185: 2475 | D185: 2473.15 | E185: 2474.05
A186: 2017-08-30T12:19:00 | B186: 2474.15 | C186: 2474.85 | D186: 2474.15 | E186: 2474.3
A187: 2017-08-30T12:20:00 | B187: 2474.9 | C187: 2474.9 | D187: 2474.2 | E187: 2474.8
A188: 2017-08-30T12:21:00 | B188: 2474.75 | C188: 2478.8 | D188: 2474.25 | E188: 2477.45
A189: 2017-08-30T12:22:00 | B189: 2477.85 | C189: 2478.8 | D189: 2476 | E189: 2477
A190: 2017-08-30T12:23:00 | B190: 2477.05 | C190: 2479.1 | D190: 2477 | E190: 2478.5
A191: 2017-08-30T12:24:00 | B191: 2480 | C191: 2482 | D191: 2480 | E191: 2481.1
A192: 2017-08-30T12:25:00 | B192: 2481.1 | C192: 2481.35 | D192: 2478.2 | E192: 2480.85
A193: 2017-08-30T12:26:00 | B193: 2482.9 | C193: 2483.2 | D193: 2482 | E193: 2482
A194: 2017-08-30T12:27:00 | B194: 2482 | C194: 2482.5 | D194: 2481 | E194: 2481.5
A195: 2017-08-30T12:28:00 | B195: 2482 | C195: 2482 | D195: 2481.6 | E195: 2481.65
A196: 2017-08-30T12:29:00 | B196: 2481.7 | C196: 2482 | D196: 2480.1 | E196: 2480.1
A197: 2017-08-30T12:30:00 | B197: 2480 | C197: 2481.7 | D197: 2480 | E197: 2480.2
A198: 2017-08-30T12:31:00 | B198: 2480.2 | C198: 2482.75 | D198: 2480.2 | E198: 2482
A199: 2017-08-30T12:32:00 | B199: 2482.8 | C199: 2482.8 | D199: 2482 | E199: 2482
A200: 2017-08-30T12:33:00 | B200: 2482 | C200: 2482.2 | D200: 2482 | E200: 2482.2
... 5227 more rows

Sheet Sheet1 (hidden)
A1: 1
A2: 2
A3: 3
A4: 5
A5: 10
A6: 15
A7: 30
A8: 60
